bitfinex-derivatives/quotes_SOLF0:USTF0_20250623
["timestamp","ask_amount","ask_price","bid_price","bid_amount"]
[1750671503024,7.4497,134.2,134.18,5.23781143]
[1750671504319,7.4499,134.19,134.18,5.23781143]
[1750671505923,7.4497,134.2,134.18,5.23781143]
[1750671508622,7.4499,134.19,134.18,5.23781143]
[1750671510118,7.4499,134.19,134.15,66.8796]
[1750671510119,7.4499,134.19,134.16,7.4515]
[1750671510318,7.4499,134.19,134.18,5.23781143]
[1750671512426,8.17717277,134.21,134.16,5.23781143]
[1750671512732,14.08865882,134.2,134.14,44.23781143]
[1750671512930,5.91148605,134.19,134.14,5.23781143]
[1750671513129,7.4518,134.16,134.14,5.23781143]
[1750671513331,5.4434913,134.19,134.13,2.4464]
[1750671513526,5.91195771,134.18,134.14,5.23781143]
[1750671513732,7.4521,134.16,134.14,5.23781143]
[1750671514629,7.4521,134.15,134.14,5.23781143]
[1750671515333,7.4521,134.15,134.12,12.69131143]
[1750671516523,7.4527,134.14,134.12,12.69131143]
[1750671517325,7.4532,134.13,134.12,5.23781143]
[1750671518030,7.4532,134.13,134.11,2.2818]
[1750671518239,7.4538,134.12,134.11,7.51961143]
[1750671518429,5.90282576,134.16,134.11,7.51961143]
[1750671518630,7.4533,134.13,134.11,7.51961143]
[1750671519336,5.90336958,134.15,134.11,7.51961143]
[1750671519537,38.84,134.18,134.13,5.23781143]
[1750671519740,5.90202599,134.17,134.13,5.23781143]
[1750671519938,13.35412599,134.16,134.13,5.23781143]
[1750671520236,5.43906873,134.17,134.12,12.69111143]
[1750671520436,5.90171662,134.16,134.12,5.23781143]
[1750671520638,44.07781143,134.18,134.12,5.23781143]
[1750671520836,11.34102541,134.17,134.12,5.23781143]
[1750671521031,13.35403963,134.16,134.12,5.23781143]
[1750671521229,38.84,134.18,134.12,5.23781143]
[1750671521539,7.4519,134.16,134.13,7.4529]
[1750671522442,7.4522,134.15,134.13,7.4529]
[1750671523143,7.4522,134.15,134.14,5.23781143]
[1750671526548,7.4518,134.16,134.14,5.23781143]
[1750671527444,7.4513,134.17,134.14,5.23781143]
[1750671527645,38.84,134.18,134.14,5.23781143]
[1750671528752,7.451,134.17,134.15,7.4518]
[1750671529751,38.84,134.18,134.14,7.4523]
[1750671529953,38.84,134.18,134.15,5.23781143]
[1750671530754,7.4518,134.16,134.15,5.23781143]
[1750671531453,7.4513,134.17,134.15,5.23781143]
[1750671533053,7.4513,134.17,134.15,12.68981143]
[1750671533359,38.74,134.21,134.15,5.23781143]
[1750671533554,5.89481024,134.2,134.17,5.23781143]
[1750671533860,7.4504,134.19,134.17,5.23781143]
[1750671534260,7.4494,134.2,134.17,5.23781143]
[1750671534557,7.4494,134.2,134.12,46.50601143]
[1750671534558,7.4494,134.2,134.19,5.23781143]
[1750671534760,13.34379184,134.2,134.19,5.23781143]
[1750671534948,13.34379184,134.2,134.17,7.4505]
[1750671535155,7.4502,134.19,134.17,5.23781143]
[1750671536558,7.4505,134.18,134.17,5.23781143]
[1750671538554,7.4512,134.17,134.14,7.4524]
[1750671538858,5.91226993,134.19,134.16,5.23781143]
[1750671539051,6.80268444,134.26,134.18,10.47562286]
[1750671539255,5.90937558,134.25,134.23,5.23781143]
[1750671539453,8.16255115,134.27,134.24,5.23781143]
[1750671539660,7.4466,134.25,134.24,5.23781143]
[1750671540458,5.23781143,134.27,134.19,2.4596]
[1750671540656,13.39059055,134.27,134.22,5.23781143]
[1750671540854,8.15277912,134.27,134.22,5.23781143]
[1750671541053,8.15277912,134.27,134.22,12.68601143]
[1750671541360,5.42278543,134.27,134.22,5.23781143]
[1750671541562,8.15255912,134.27,134.22,5.23781143]
[1750671541862,13.39037055,134.27,134.2,5.23781143]
[1750671542056,7.4486,134.22,134.2,5.23781143]
[1750671542658,38.72,134.24,134.2,5.23781143]
[1750671543560,7.4486,134.22,134.2,5.23781143]
[1750671544054,7.4491,134.21,134.19,2.4596]
[1750671544760,43.95781143,134.24,134.18,5.23781143]
[1750671545557,7.4497,134.2,134.18,5.23781143]
[1750671547264,7.4499,134.19,134.18,5.23781143]
[1750671548064,7.4496,134.2,134.18,5.23781143]
[1750671550266,7.4499,134.19,134.18,5.23781143]
[1750671550663,43.95781143,134.24,134.18,5.23781143]
[1750671550964,7.4498,134.2,134.18,5.23781143]
[1750671551664,7.4499,134.19,134.18,5.23781143]
[1750671552560,7.4496,134.2,134.18,5.23781143]
[1750671553063,43.95781143,134.24,134.18,5.23781143]
[1750671553064,38.72,134.24,134.18,5.23781143]
[1750671553265,38.72,134.24,134.21,5.23781143]
[1750671553664,7.4477,134.23,134.21,5.23781143]
[1750671555671,38.72,134.24,134.21,12.68661143]
[1750671555672,46.1674,134.24,134.21,12.68661143]
[1750671555864,43.95781143,134.27,134.21,12.68661143]
[1750671556264,7.4474,134.24,134.21,12.68661143]
[1750671556465,43.95781143,134.27,134.21,12.68661143]
[1750671556868,7.4473,134.24,134.21,12.68661143]
[1750671557164,43.95781143,134.27,134.21,5.23781143]
[1750671557571,7.447,134.25,134.21,5.23781143]
[1750671558175,7.447,134.25,134.22,7.4479]
[1750671558872,7.4473,134.24,134.21,12.68631143]
[1750671562674,43.95781143,134.27,134.21,5.23781143]
[1750671563169,7.448,134.23,134.21,5.23781143]
[1750671563370,43.95781143,134.27,134.19,15.11341143]
[1750671563770,7.4485,134.22,134.19,7.66381143]
[1750671564173,43.95781143,134.27,134.2,7.4493]
[1750671564370,7.448,134.23,134.2,7.4493]
[1750671564571,43.95781143,134.27,134.2,7.4493]
[1750671565071,49.37011273,134.27,134.2,7.4493]
[1750671565278,7.448,134.23,134.2,7.4493]
[1750671565669,7.448,134.23,134.2,12.68711143]
[1750671566480,7.4483,134.22,134.2,5.23781143]
[1750671567073,7.4488,134.21,134.2,5.23781143]
[1750671567978,7.4485,134.22,134.2,5.23781143]
[1750671569674,7.4488,134.21,134.2,5.23781143]
[1750671570078,5.23781143,134.25,134.18,12.68791143]
[1750671570768,7.4491,134.21,134.18,12.68791143]
[1750671571175,7.4497,134.2,134.18,5.23781143]
[1750671571480,7.4497,134.2,134.17,51.1252]
[1750671572078,43.85781143,134.23,134.16,5.23781143]
[1750671572273,5.23781143,134.21,134.15,2.4055]
[1750671572475,5.23781143,134.21,134.14,43.85781143]
[1750671572679,7.451,134.18,134.15,7.4519]
[1750671575385,5.23781143,134.21,134.14,51.31021143]
[1750671576978,7.4513,134.17,134.14,51.31021143]
[1750671577579,7.4513,134.17,134.15,7.4521]
[1750671577784,7.4513,134.17,134.14,43.85781143]
[1750671577985,5.23781143,134.2,134.14,43.85781143]
[1750671578893,7.4509,134.18,134.14,51.31011143]
[1750671579289,5.23781143,134.2,134.14,51.31011143]
[1750671580087,7.4513,134.17,134.14,51.31011143]
[1750671581289,5.23781143,134.18,134.11,2.4091]
[1750671581493,38.64,134.19,134.14,5.23781143]
[1750671581693,38.64,134.19,134.16,5.23781143]
[1750671581992,7.451,134.17,134.16,5.23781143]
[1750671582191,7.451,134.17,134.15,5.23781143]
[1750671583892,7.4516,134.16,134.15,5.23781143]
[1750671586099,7.4516,134.16,134.15,5.23781143]
[1750671587298,7.4512,134.17,134.15,12.68991143]
[1750671588699,7.4516,134.16,134.15,5.23781143]
[1750671589997,7.4513,134.17,134.15,5.23781143]
[1750671590399,7.4513,134.17,134.15,12.68981143]
[1750671591695,7.4513,134.17,134.15,5.23781143]
[1750671592602,7.4513,134.17,134.15,12.68991143]
[1750671592996,38.56,134.2,134.14,5.23781143]
[1750671593198,5.23781143,134.25,134.18,5.23781143]
[1750671593404,46.73824535,134.26,134.2,5.23781143]
[1750671593603,46.73824535,134.26,134.2,12.68681143]
[1750671594206,7.448,134.23,134.21,7.4487]
[1750671594698,7.448,134.23,134.2,12.68681143]
[1750671595403,7.4483,134.22,134.2,12.68681143]
[1750671595799,43.79781143,134.26,134.19,12.68731143]
[1750671596405,7.4485,134.22,134.19,12.68731143]
[1750671596797,7.4485,134.22,134.2,7.4493]
[1750671598705,7.4485,134.22,134.19,12.68751143]
[1750671598905,2.94720683,134.25,134.19,5.23781143]
[1750671599304,5.23781143,134.24,134.18,43.79781143]
[1750671599698,7.4493,134.2,134.18,43.79781143]
[1750671599906,7.4493,134.2,134.18,5.23781143]
[1750671600205,7.4493,134.2,134.18,12.68821143]
[1750671600407,7.4491,134.21,134.18,12.68821143]
[1750671600601,5.23781143,134.24,134.18,12.68821143]
[1750671601305,8.18501826,134.24,134.18,12.68821143]
[1750671601508,5.23781143,134.24,134.18,12.68821143]
[1750671601707,7.4493,134.2,134.18,12.68821143]
[1750671603206,43.79781143,134.22,134.16,7.3764]
[1750671603404,38.56,134.22,134.17,5.23781143]
[1750671603604,38.56,134.22,134.18,7.4502]
[1750671603805,7.4491,134.21,134.18,7.4502]
[1750671604307,38.56,134.22,134.18,7.4502]
[1750671604308,7.4494,134.2,134.18,7.4502]
[1750671604810,7.4494,134.2,134.17,12.68851143]
[1750671605010,7.4502,134.19,134.17,7.4507]
[1750671605209,7.4502,134.19,134.17,12.68851143]
[1750671606506,7.4505,134.18,134.17,5.23781143]
[1750671608704,7.4504,134.19,134.17,5.23781143]
[1750671609407,7.4505,134.18,134.17,5.23781143]
[1750671610011,7.4502,134.19,134.17,5.23781143]
[1750671610911,7.4502,134.19,134.16,14.8277]
[1750671611210,7.4505,134.18,134.17,5.23781143]
[1750671612814,7.4501,134.19,134.17,5.23781143]
[1750671613314,38.56,134.22,134.17,5.23781143]
[1750671613515,7.4505,134.18,134.17,5.23781143]
[1750671616512,7.4501,134.19,134.17,12.68881143]
[1750671617316,7.4501,134.19,134.17,5.23781143]
[1750671618924,7.4505,134.18,134.17,5.23781143]
[1750671620313,7.451,134.17,134.16,7.67841143]
[1750671622218,7.4518,134.16,134.14,43.79781143]
[1750671622517,8.37653784,134.2,134.14,43.79781143]
[1750671622718,2.95228875,134.19,134.14,5.23781143]
[1750671623320,5.42422735,134.2,134.14,5.23781143]
[1750671623519,2.95243386,134.19,134.14,5.23781143]
[1750671623723,5.42422735,134.2,134.14,5.23781143]
[1750671624020,8.19010912,134.19,134.12,17.51261143]
[1750671624217,8.18965198,134.19,134.12,10.05921143]
[1750671624426,5.23781143,134.17,134.1,2.4102]
[1750671624611,2.9526617,134.16,134.1,7.64801143]
[1750671625123,2.9526617,134.16,134.14,5.23781143]
[1750671625313,41.4126617,134.18,134.14,5.23781143]
[1750671625509,38.46,134.18,134.14,5.23781143]
[1750671625712,7.452,134.16,134.14,5.23781143]
[1750671628322,7.452,134.16,134.13,7.4529]
[1750671628524,7.452,134.16,134.13,12.69071143]
[1750671630720,7.452,134.16,134.14,7.4526]
[1750671631024,7.452,134.16,134.13,5.23781143]
[1750671631722,7.452,134.16,134.13,12.69081143]
[1750671631924,7.452,134.16,134.13,5.23781143]
[1750671632312,7.452,134.16,134.14,7.4524]
[1750671632721,7.4513,134.17,134.14,7.4524]
[1750671633423,38.46,134.18,134.12,38.46]
[1750671633624,43.69781143,134.18,134.1,7.64801143]
[1750671634014,7.4537,134.13,134.1,15.10261143]
[1750671634619,7.4537,134.13,134.11,7.4543]
[1750671634820,5.23781143,134.16,134.1,7.64801143]
[1750671635023,7.4538,134.12,134.1,7.64801143]
[1750671636527,7.4538,134.12,134.1,15.10291143]
[1750671636824,5.23781143,134.15,134.09,5.23781143]
[1750671637022,38.46,134.14,134.09,5.23781143]
[1750671637225,38.46,134.14,134.08,45.9157]
[1750671637526,38.46,134.14,134.08,43.69781143]
[1750671637925,38.46,134.14,134.08,51.15371143]
[1750671638724,7.455,134.1,134.08,51.15371143]
[1750671638923,5.23781143,134.13,134.08,43.69781143]
[1750671639319,7.4553,134.1,134.08,5.23781143]
[1750671639525,7.4553,134.1,134.08,12.69371143]
[1750671639724,5.23781143,134.13,134.08,12.69371143]
[1750671639925,7.4549,134.1,134.08,12.69371143]
[1750671640122,7.4549,134.1,134.08,5.23781143]
[1750671640428,5.23781143,134.13,134.08,5.23781143]
[1750671640627,7.4551,134.1,134.08,5.23781143]
[1750671641026,7.4546,134.11,134.08,5.23781143]
[1750671641330,38.46,134.14,134.08,5.23781143]
[1750671641721,7.4547,134.11,134.08,12.69351143]
[1750671641927,38.46,134.14,134.08,12.69351143]
[1750671642626,38.46,134.14,134.09,7.4553]
[1750671643522,38.46,134.14,134.08,12.69361143]
[1750671644228,7.4546,134.11,134.08,12.69361143]
[1750671644928,7.4551,134.1,134.08,12.69361143]
[1750671646127,7.4546,134.11,134.08,12.69361143]
[1750671647429,7.455,134.1,134.08,12.69361143]
[1750671653535,38.46,134.14,134.08,5.23781143]
[1750671653929,38.46,134.14,134.06,69.3021]
[1750671654135,10.55296475,134.17,134.12,5.23781143]
[1750671654136,40.7607,134.17,134.12,5.23781143]
[1750671654529,7.453,134.14,134.12,5.23781143]
[1750671655132,40.7607,134.17,134.12,5.23781143]
[1750671655635,38.38,134.16,134.1,5.23781143]
[1750671655836,7.4538,134.12,134.1,5.23781143]
[1750671657932,7.4538,134.12,134.1,12.69271143]
[1750671658839,38.38,134.16,134.11,7.4543]
[1750671659032,38.38,134.16,134.11,12.69211143]
[1750671659634,38.38,134.16,134.12,7.4536]
[1750671659833,7.4527,134.15,134.13,5.23781143]
[1750671660034,38.38,134.16,134.13,5.23781143]
[1750671660236,7.4521,134.15,134.13,5.23781143]
[1750671660835,38.38,134.16,134.13,5.23781143]
[1750671661139,38.38,134.17,134.13,5.23781143]
[1750671661541,7.4525,134.15,134.13,5.23781143]
[1750671662637,7.4527,134.14,134.13,5.23781143]
[1750671665044,7.4527,134.14,134.12,5.23781143]
[1750671666146,38.38,134.17,134.12,5.23781143]
[1750671667045,7.4532,134.13,134.12,5.23781143]
[1750671668242,5.23781143,134.15,134.08,9.23858203]
[1750671668446,5.23781143,134.15,134.09,5.23781143]
[1750671669044,7.455,134.1,134.09,5.23781143]
[1750671673452,38.38,134.13,134.06,115.139]
[1750671673644,43.61781143,134.13,134.07,5.23781143]
[1750671674245,2.94788084,134.12,134.07,5.23781143]
[1750671674646,7.456,134.08,134.07,5.23781143]
[1750671675546,7.456,134.08,134.06,2.4468]
[1750671675547,7.4566,134.07,134.06,2.4468]
[1750671675751,2.94456424,134.12,134.05,5.23781143]
[1750671675957,2.94456424,134.11,134.05,5.23781143]
[1750671676150,7.4571,134.06,134.05,5.23781143]
[1750671676350,65.46318447,134.13,134.04,5.23781143]
[1750671676351,38.38,134.09,134.04,5.23781143]
[1750671676653,7.458,134.05,134.04,5.23781143]
[1750671677650,7.4575,134.06,134.04,5.23781143]
[1750671678855,7.4569,134.07,134.04,5.23781143]
[1750671679054,38.38,134.09,134.04,5.23781143]
[1750671679655,7.457,134.07,134.04,5.23781143]
[1750671680450,7.4573,134.06,134.05,5.23781143]
[1750671681144,7.4577,134.05,134.03,38.38]
[1750671681344,38.38,134.09,134.04,5.23781143]
[1750671681946,7.4574,134.06,134.04,5.23781143]
[1750671683353,7.4574,134.06,134.03,45.8387]
[1750671683554,7.4574,134.06,134.04,5.23781143]
[1750671683958,38.38,134.09,134.04,12.69591143]
[1750671683959,7.4568,134.07,134.04,12.69591143]
[1750671684958,7.4572,134.06,134.04,12.69591143]
[1750671685259,7.4572,134.06,134.04,5.23781143]
[1750671685562,7.458,134.05,134.03,38.38]
[1750671685860,43.61781143,134.09,134.03,5.23781143]
[1750671686055,7.458,134.05,134.03,5.23781143]
[1750671688265,7.4582,134.04,134.03,5.23781143]
[1750671690566,7.4579,134.05,134.03,5.23781143]
[1750671691171,7.4582,134.04,134.01,9.8095]
[1750671691364,7.4582,134.04,134.03,5.23781143]
[1750671692569,7.4579,134.05,134.03,5.23781143]
[1750671695373,7.4582,134.04,134.03,5.23781143]
[1750671696179,7.4579,134.05,134.03,12.69661143]
[1750671696769,7.4579,134.05,134.03,5.23781143]
[1750671697275,43.61781143,134.09,134.03,5.23781143]
[1750671698374,7.4582,134.05,134.03,5.23781143]
[1750671699676,7.4582,134.04,134.03,5.23781143]
[1750671703078,5.23781143,134.07,133.99,4.8242]
[1750671703281,38.32,134.06,133.99,5.23781143]
[1750671703575,5.23781143,134.05,133.99,5.23781143]
[1750671704182,7.4603,134.01,133.99,5.23781143]
[1750671706484,40.7744,134.06,133.99,5.23781143]
[1750671706682,38.32,134.06,134.01,5.23781143]
[1750671706980,7.4589,134.03,134.01,5.23781143]
[1750671707582,7.4585,134.04,134.01,12.69741143]
[1750671707980,7.4588,134.03,134.01,12.69741143]
[1750671708881,7.4588,134.03,134.01,5.23781143]
[1750671709079,38.32,134.06,134.01,5.23781143]
[1750671709579,7.4591,134.03,134.0,7.4602]
[1750671709779,7.4591,134.03,134.01,5.23781143]
[1750671710482,7.4591,134.03,134.01,12.69761143]
[1750671712586,7.4591,134.03,134.01,7.4598]
[1750671712784,7.4591,134.03,134.01,12.69761143]
[1750671712977,38.32,134.06,134.01,5.23781143]
[1750671713484,41.25737133,134.06,133.99,5.23781143]
[1750671713687,41.25737133,134.07,134.03,5.23781143]
[1750671713881,38.32,134.07,134.03,5.23781143]
[1750671714180,7.4582,134.04,134.03,5.23781143]
[1750671718788,7.4582,134.04,134.02,5.23781143]
[1750671719592,7.4582,134.04,134.02,12.69711143]
[1750671720591,2.93987839,134.07,134.02,5.23781143]
[1750671720790,2.93987839,134.07,133.99,9.23858203]
[1750671720791,38.22,134.08,134.04,5.23781143]
[1750671721192,7.4574,134.06,134.04,12.69601143]
[1750671721492,7.4574,134.06,134.04,5.23781143]
[1750671722488,7.4574,134.06,134.04,12.69581143]
[1750671722692,38.22,134.1,134.04,5.23781143]
[1750671722885,2.94251375,134.09,134.06,5.23781143]
[1750671723089,38.22,134.1,134.06,5.23781143]
[1750671723090,43.60871948,134.1,134.06,5.23781143]
[1750671723291,38.22,134.1,134.06,5.23781143]
[1750671723485,43.60871948,134.1,134.06,5.23781143]
[1750671723691,7.4566,134.07,134.06,5.23781143]
[1750671725387,7.4572,134.06,134.05,5.23781143]
[1750671730195,7.4583,134.04,134.02,11.57268203]
[1750671730392,7.4583,134.04,134.03,5.23781143]
[1750671733605,38.22,134.06,134.0,9.23858203]
[1750671733808,43.45781143,134.06,134.0,5.23781143]
[1750671734006,5.23781143,134.04,133.99,5.23781143]
[1750671734203,7.4605,134.0,133.99,5.23781143]
[1750671735604,7.461,133.99,133.98,2.4787]
[1750671736807,7.4607,134.0,133.98,2.4787]
[1750671737007,8.17577912,134.04,133.99,5.23781143]
[1750671737813,7.4605,134.0,133.99,5.23781143]
[1750671742214,7.4605,134.0,133.98,2.4787]
[1750671742413,7.4605,134.0,133.98,7.71651143]
[1750671745310,7.461,133.99,133.98,7.71651143]
[1750671746009,7.461,133.99,133.96,74.44]
[1750671746210,7.4616,133.98,133.97,5.23781143]
[1750671748021,7.4616,133.98,133.96,4.9776]
[1750671748216,7.4616,133.98,133.97,5.23781143]
[1750671749615,43.39781143,134.02,133.94,11.75958203]
[1750671749814,58.31671143,134.02,133.94,7.75881143]
[1750671750423,7.4626,133.97,133.94,15.22261143]
[1750671751618,7.4627,133.96,133.94,15.22261143]
[1750671751919,38.16,134.03,133.94,7.75881143]
[1750671752119,38.16,134.03,133.99,5.23781143]
[1750671752619,38.16,134.03,133.98,5.23781143]
[1750671753021,7.4607,134.0,133.98,5.23781143]
[1750671753414,43.39781143,134.03,133.95,4.6935]
[1750671753722,43.39781143,134.03,133.97,5.23781143]
[1750671754219,7.461,133.99,133.97,5.23781143]
[1750671754720,7.4616,133.98,133.97,5.23781143]
[1750671756624,7.4613,133.99,133.97,5.23781143]
[1750671757321,7.4616,133.98,133.97,5.23781143]
[1750671762726,7.4613,133.99,133.97,12.69991143]
[1750671762926,7.4613,133.99,133.97,5.23781143]
[1750671765427,7.4616,133.98,133.97,5.23781143]
[1750671767942,7.4616,133.98,133.96,7.4624]
[1750671768133,7.4616,133.98,133.97,5.23781143]
[1750671770521,7.4616,133.98,133.97,12.69991143]
[1750671772233,7.4616,133.98,133.97,5.23781143]
[1750671775328,7.4616,133.98,133.96,7.4624]
[1750671775533,7.4616,133.98,133.97,5.23781143]
[1750671776538,7.4625,133.97,133.95,5.23781143]
[1750671776935,40.4828,134.04,133.95,14.47639346]
[1750671777137,40.4828,134.04,134.0,5.23781143]
[1750671777138,45.88068901,134.04,134.0,5.23781143]
[1750671777332,40.4828,134.04,134.0,5.23781143]
[1750671777638,45.88068901,134.04,133.97,7.4619]
[1750671777834,45.88068901,134.04,133.98,5.23781143]
[1750671778028,5.39788901,134.03,133.97,5.23781143]
[1750671778232,7.461,133.99,133.97,12.69991143]
[1750671780039,7.4607,134.0,133.97,12.69991143]
[1750671780341,5.40620661,134.03,133.97,12.69991143]
[1750671780541,7.4613,133.99,133.97,5.23781143]
[1750671781444,7.4608,134.0,133.97,12.69971143]
[1750671781744,7.4608,134.0,133.99,5.23781143]
[1750671781947,7.4601,134.01,133.99,5.23781143]
[1750671782537,7.4601,134.01,133.99,12.69851143]
[1750671783841,38.08,134.04,133.99,5.23781143]
[1750671784045,38.08,134.04,134.01,5.23781143]
[1750671784246,7.4595,134.02,134.01,5.23781143]
[1750671784835,7.4606,134.0,133.99,5.23781143]
[1750671785740,7.4612,133.99,133.96,54.78098203]
[1750671785944,13.7147357,134.03,133.97,5.23781143]
[1750671786141,13.57357163,134.02,133.96,9.23858203]
[1750671786338,7.4631,133.96,133.94,16.99739346]
[1750671786538,38.08,133.99,133.94,16.99739346]
[1750671786738,38.08,133.99,133.96,5.23781143]
[1750671787350,40.3768,134.02,133.98,5.23781143]
[1750671787641,7.4605,134.0,133.98,5.23781143]
[1750671787844,5.4042464,134.01,133.96,5.23781143]
[1750671788046,2.93462038,134.03,134.0,5.23781143]
[1750671788347,38.08,134.04,134.0,5.23781143]
[1750671788846,7.4596,134.02,134.0,5.23781143]
[1750671789344,7.4599,134.01,134.0,5.23781143]
[1750671790649,7.4596,134.02,134.0,5.23781143]
[1750671791348,38.08,134.04,134.0,5.23781143]
[1750671792548,7.4597,134.02,134.0,5.23781143]
[1750671793244,7.4597,134.02,134.0,7.4605]
[1750671793449,7.4597,134.02,134.0,5.23781143]
[1750671795445,7.4599,134.01,134.0,5.23781143]
[1750671797050,7.4596,134.02,134.0,5.23781143]
[1750671797652,7.4596,134.02,134.0,12.69821143]
[1750671797951,7.4596,134.02,134.0,5.23781143]
[1750671798352,7.46,134.01,133.99,7.4607]
[1750671798554,7.46,134.01,134.0,5.23781143]
[1750671799255,7.4597,134.02,134.0,5.23781143]
[1750671800549,7.4599,134.01,134.0,5.23781143]
[1750671800853,38.08,134.04,134.0,5.23781143]
[1750671801055,7.4597,134.02,134.0,5.23781143]
[1750671802459,2.93136252,134.05,134.0,5.23781143]
[1750671802757,2.93145909,134.06,134.03,5.23781143]
[1750671802958,7.458,134.05,134.03,5.23781143]
[1750671803355,7.458,134.05,134.03,12.69651143]
[1750671804860,7.4582,134.04,134.03,5.23781143]
[1750671805561,7.4582,134.04,134.03,12.69661143]
[1750671805758,7.4579,134.05,134.03,12.69661143]
[1750671805957,38.08,134.07,134.03,5.23781143]
[1750671806260,38.08,134.07,134.05,5.23781143]
[1750671806657,7.4568,134.07,134.05,5.23781143]
[1750671806859,2.93418121,134.08,134.05,5.23781143]
[1750671807658,2.9340999,134.08,134.05,5.23781143]
[1750671808757,7.457,134.07,134.05,5.23781143]
[1750671809358,5.40767601,134.09,134.05,5.23781143]
[1750671809558,2.93378344,134.09,134.07,5.23781143]
[1750671809758,38.02,134.1,134.07,5.23781143]
[1750671809962,7.4555,134.09,134.07,5.23781143]
[1750671810465,7.456,134.08,134.07,5.23781143]
[1750671813761,7.4557,134.09,134.07,5.23781143]
[1750671814161,38.02,134.1,134.07,12.69431143]
[1750671814362,45.4753,134.1,134.07,12.69431143]
[1750671814562,38.02,134.1,134.07,12.69431143]
[1750671815164,45.4753,134.1,134.07,12.69431143]
[1750671816358,7.4555,134.09,134.07,12.69431143]
[1750671816563,7.4555,134.09,134.07,5.23781143]
[1750671816957,2.93101757,134.12,134.07,5.23781143]
[1750671817261,644.42,134.14,134.05,43.23781143]
[1750671817262,2.93101757,134.13,134.09,5.23781143]
[1750671817666,8.33207616,134.13,134.09,5.23781143]
[1750671817971,7.4549,134.1,134.09,5.23781143]
[1750671818371,8.33285996,134.13,134.08,5.23781143]
[1750671818671,7.4557,134.09,134.08,5.23781143]
[1750671819370,38.0,134.1,134.06,5.23781143]
[1750671819867,7.4566,134.07,134.06,5.23781143]
[1750671822971,7.4563,134.08,134.06,5.23781143]
[1750671823271,38.0,134.1,134.06,5.23781143]
[1750671823472,7.4563,134.08,134.06,5.23781143]
[1750671826574,7.4558,134.09,134.06,12.69491143]
[1750671826775,7.4558,134.09,134.08,5.23781143]
[1750671830665,38.0,134.12,134.08,5.23781143]
[1750671831772,7.4553,134.1,134.08,5.23781143]
[1750671833377,7.4555,134.09,134.07,7.4565]
[1750671833576,7.4555,134.09,134.08,5.23781143]
[1750671834283,7.4566,134.07,134.06,2.2947]
[1750671834479,7.4566,134.07,134.06,7.53251143]
[1750671838076,7.4566,134.07,134.06,5.23781143]
[1750671849497,7.4563,134.08,134.06,5.23781143]
[1750671850695,44.92548686,134.12,134.06,5.23781143]
[1750671850696,7.4566,134.07,134.06,5.23781143]
[1750671852195,7.4566,134.07,134.06,3.36227285]
[1750671856502,2.94532795,134.09,134.06,3.36227285]
[1750671856705,5.39359139,134.11,134.08,3.36227285]
[1750671857000,8.37737188,134.1,134.09,3.36227285]
[1750671857303,8.37737188,134.1,134.06,7.457]
[1750671857505,5.39359139,134.11,134.09,3.36227285]
[1750671857702,8.37717306,134.1,134.09,3.36227285]
[1750671857897,15.83207306,134.1,134.09,3.36227285]
[1750671858297,15.83364613,134.1,134.09,3.36227285]
[1750671859701,5.43361714,134.11,134.09,3.36227285]
[1750671859907,2.4542,134.15,134.1,3.36227285]
[1750671859908,12.31967167,134.15,134.1,3.36227285]
[1750671860200,44.86548686,134.16,134.14,3.36227285]
[1750671860401,15.8319773,134.15,134.14,3.36227285]
[1750671861605,10.39794108,134.15,134.14,3.36227285]
[1750671861805,7.4521,134.15,134.14,3.36227285]
[1750671862409,43.36445766,134.16,134.1,37.94]
[1750671862603,43.36445766,134.16,134.13,5.24845856]
[1750671863002,7.4521,134.15,134.13,5.24845856]
[1750671863209,43.36445766,134.16,134.13,5.24845856]
[1750671863411,37.94,134.16,134.13,5.24845856]
[1750671863613,43.36440318,134.16,134.13,5.24845856]
[1750671864007,43.36404238,134.16,134.13,5.24845856]
[1750671864709,7.4527,134.14,134.13,5.24845856]
[1750671871414,58.09185856,134.16,134.07,11.63938203]
[1750671871612,5.24845856,134.14,134.08,5.24845856]
[1750671871912,7.4546,134.11,134.08,12.70415856]
[1750671872117,7.4546,134.11,134.1,5.24845856]